Workbook

Sheet 附件3
A1: 附件3
A2: 2025年蓬江区一般公共预算调整情况表
H3: 单位：万元
A4: 收 入 | E4: 支 出
A5: 项目 | B5: 年初预算数 | C5: 调整金额 | D5: 调整后预算数 | E5: 项目 | F5: 年初预算数 | G5: 调整金额 | H5: 调整后预算数
A6: 一、一般公共预算收入 | B6: 326,133 | C6: =D6-B6 -> 22,327 | D6: 348,460 | E6: 一、一般公共预算支出 | F6: 501,138 | G6: =H6-F6 -> 0 | H6: 501,138
A7: 二、上年结转收入 | B7: 3,316 | C7: =D7-B7 -> 2,070 | D7: 5,386 | E7: 二、转移性支出 | F7: =F8+F9 -> 74,709 | G7: =H7-F7 -> 24,334 | H7: =H8+H9 -> 99,043
A8: 三、转移性收入 | B8: =B9+B10 -> 113,398 | C8: 0 | D8: =D9+D10 -> 113,398 | E8: （一）上解上级支出 | F8: 74,709 | G8: =H8-F8 -> 24,334 | H8: =F8+20742+3592 -> 99,043
A9: （一）上级补助收入 | B9: 113,398 | C9: 0 | D9: 113,398 | E9: （二）补助下级支出
A10: （二）下级上解收入 | E10: 三、债务还本支出 | F10: 569 | G10: =H10-F10 -> 0 | H10: 569
A11: 四、债务转贷收入 | B11: =B12+B13 -> 10,569 | C11: -63 | D11: =D12+D13 -> 10,506 | E11: 四、结转下年支出
A12: （一）再融资债券收入 | B12: 569 | C12: -63 | D12: 506
A13: （二）一般债券收入 | B13: 10,000 | C13: 0 | D13: 10,000
A14: 五、调入资金 | B14: =B15+B16 -> 123,000 | C14: 0 | D14: =D15+D16 -> 123,000
A15: （一）调入政府性基金预算资金 | B15: 118,000 | C15: 0 | D15: 118,000
A16: （二）调入国有资本预算资金 | B16: 5,000 | C16: 0 | D16: 5,000
A17: （三）调入其他资金
A18: （四）调入预算稳定调节金
A19: 收入总计 | B19: =B6+B7+B8+B11+B14 -> 576,416 | C19: 24,334 | D19: =D6+D7+D8+D11+D14 -> 600,750 | E19: 支出总计 | F19: =F6+F7+F10 -> 576,416 | G19: =H19-F19 -> 24,334 | H19: =H6+H7+H10 -> 600,750
